bitfinex-derivatives/quotes_ETHF0:USTF0_20250528
["timestamp","ask_amount","ask_price","bid_price","bid_amount"]
[1748433304308,0.00564887,2657.7,2657.4,0.6426]
[1748433304810,0.00564887,2657.7,2657.5,1.3658]
[1748433305509,4.60364887,2657.7,2657.5,1.3658]
[1748433306014,0.08028795,2657.7,2657.5,1.3658]
[1748433306519,3.2078,2658.4,2657.6,3.2078]
[1748433306704,1.05801265,2658.3,2657.6,3.8651]
[1748433306901,7.8058,2658.4,2657.9,3.2078]
[1748433307516,7.81144887,2658.4,2658.0,0.6569]
[1748433308011,4.60364887,2658.4,2658.0,0.6569]
[1748433308613,0.00564887,2658.4,2658.0,0.6569]
[1748433308838,0.00564887,2658.4,2658.2,3.2078]
[1748433309027,0.00564887,2658.4,2658.0,0.6569]
[1748433309414,0.00564887,2658.4,2658.2,3.2078]
[1748433309713,0.00564887,2658.4,2658.3,1.3206]
[1748433310413,0.73874887,2658.4,2658.3,1.3206]
[1748433311616,0.00564887,2658.4,2658.3,1.3206]
[1748433311810,0.00564887,2658.4,2658.3,0.3206]
[1748433314022,3.21344887,2658.4,2658.0,0.6569]
[1748433314219,4.49994887,2658.4,2658.0,0.6569]
[1748433314632,3.2078,2658.1,2657.9,0.00564887]
[1748433314816,6.5113,2658.0,2657.9,0.00564887]
[1748433315410,3.2078,2658.1,2657.9,0.00564887]
[1748433315616,1.2594,2658.0,2657.9,0.00564887]
[1748433317727,1.2594,2658.0,2657.5,1.2359]
[1748433317919,1.2594,2658.0,2657.0,3.8239]
[1748433317920,3.2078,2657.6,2657.0,3.8239]
[1748433318119,1.2594,2657.5,2657.0,3.8239]
[1748433318622,1.906,2657.5,2657.0,3.8239]
[1748433318818,1.906,2657.5,2657.0,3.82954887]
[1748433321129,1.98063908,2657.5,2657.1,1.3453]
[1748433321327,40.8,2657.4,2657.1,1.3453]
[1748433321618,1.3549,2657.3,2657.1,1.3453]
[1748433322027,1.3549,2657.3,2657.0,3.21344887]
[1748433322914,4.5627,2657.3,2657.0,0.00564887]
[1748433323327,45.242,2657.4,2657.0,0.00564887]
[1748433323528,46.5969,2657.4,2657.0,0.00564887]
[1748433324120,5.7969,2657.4,2657.0,0.00564887]
[1748433325927,0.07463908,2657.5,2657.0,0.00564887]
[1748433326231,0.07463908,2657.5,2657.1,3.2078]
[1748433326418,0.07463908,2657.5,2657.2,1.877]
[1748433326623,0.07463908,2657.5,2657.3,1.2544]
[1748433333726,1.3106,2657.4,2657.3,1.2544]
[1748433334948,0.07463908,2657.5,2657.3,1.2544]
[1748433344843,0.07463908,2657.5,2657.4,3.2078]
[1748433347645,0.07463908,2657.5,2657.3,1.2544]
[1748433347646,4.3490029,2657.5,2657.3,1.2544]
[1748433347945,4.442,2657.4,2657.3,1.2544]
[1748433348542,5.7167,2657.4,2657.3,1.2544]
[1748433349051,5.7167,2657.4,2657.0,0.63364887]
[1748433349247,1.06665721,2657.3,2657.1,1.3034]
[1748433349551,2.42525693,2657.2,2657.0,0.00564887]
[1748433349850,1.3585,2657.2,2657.0,0.00564887]
[1748433350055,1.06695363,2657.1,2657.0,0.00564887]
[1748433350752,2.42545363,2657.1,2657.0,0.00564887]
[1748433351250,7.42528244,2657.1,2657.0,0.00564887]
[1748433352049,11.69628244,2657.1,2657.0,0.00564887]
[1748433352850,11.9908207,2657.1,2657.0,0.00564887]
[1748433353249,11.69628244,2657.1,2657.0,0.00564887]
[1748433353452,6.69628244,2657.1,2657.0,0.00564887]
[1748433353653,2.42528244,2657.1,2657.0,0.00564887]
[1748433353852,6.9987455,2657.1,2657.0,0.00564887]
[1748433354056,6.69628244,2657.1,2657.0,0.00564887]
[1748433354657,6.99685435,2657.1,2657.0,0.00564887]
[1748433354961,6.69628244,2657.1,2657.0,0.00564887]
[1748433355263,2.42528244,2657.1,2657.0,0.00564887]
[1748433355557,6.69628244,2657.1,2657.0,0.00564887]
[1748433356867,11.69628244,2657.1,2656.1,3.2078]
[1748433357054,3.2078,2656.9,2656.1,3.2078]
[1748433357253,3.2078,2656.6,2655.9,1.9554]
[1748433357453,6.66178244,2656.5,2655.9,1.9554]
[1748433357757,1.06678244,2656.4,2655.9,1.9554]
[1748433357957,1.2554,2656.3,2655.9,1.9554]
[1748433358957,4.4632,2656.3,2655.9,1.9554]
[1748433359357,4.4632,2656.3,2655.9,1.2908]
[1748433359558,3.2078,2656.0,2655.5,0.6534]
[1748433359773,5.5264,2655.9,2655.5,1.9208]
[1748433359980,3.2078,2655.7,2655.0,0.6759]
[1748433360265,1.2554,2655.6,2655.1,1.2674]
[1748433362059,0.6397,2655.8,2655.1,4.4752]
[1748433362259,5.1769,2656.4,2655.7,3.2078]
[1748433362482,3.2078,2656.4,2655.8,2.4738]
[1748433365857,3.28243908,2656.4,2655.8,2.4738]
[1748433369261,1.3134,2656.3,2655.8,2.4738]
[1748433371276,3.28243908,2656.4,2655.8,2.4738]
[1748433372168,7.55443908,2656.4,2655.8,2.4738]
[1748433372372,3.28243908,2656.4,2655.8,2.4738]
[1748433372571,0.07463908,2656.4,2656.1,3.2078]
[1748433372761,0.07463908,2656.4,2656.2,1.2513]
[1748433375777,1.40513908,2656.4,2656.2,1.2513]
[1748433376070,4.34663908,2656.4,2656.1,3.2078]
[1748433376270,1.362,2656.3,2655.9,1.3549]
[1748433378372,1.362,2656.3,2655.9,4.5627]
[1748433379166,4.272,2656.2,2655.9,4.5627]
[1748433380070,1.3181,2656.1,2655.9,4.5627]
[1748433383674,0.07463908,2656.3,2655.9,4.5627]
[1748433385580,0.07463908,2656.3,2655.9,1.3549]
[1748433385876,1.3569,2656.2,2655.9,1.3549]
[1748433387077,4.129,2656.2,2655.9,1.3549]
[1748433387279,0.07463908,2656.3,2655.9,1.3549]
[1748433388280,0.07463908,2656.3,2656.1,3.2078]
[1748433388581,0.07463908,2656.3,2656.2,1.3121]
[1748433391681,1.36233908,2656.3,2656.2,1.3121]
[1748433392585,2.45529379,2656.3,2656.2,1.3121]
[1748433394290,1.16757829,2656.3,2656.2,1.3121]
[1748433394489,0.07463908,2656.3,2656.2,1.3121]
[1748433394784,1.1675845,2656.3,2656.2,1.3121]
[1748433394985,0.07463908,2656.3,2656.2,1.3121]
[1748433397607,8.28243908,2656.3,2655.8,1.2399]
[1748433397906,6.57337153,2656.2,2655.8,0.6178]
[1748433398094,1.72937153,2656.1,2655.6,1.2338]
[1748433398297,2.44437153,2656.0,2655.6,1.2338]
[1748433398600,1.09287153,2655.9,2655.6,1.2338]
[1748433398792,1.09287153,2655.9,2655.7,0.6421]
[1748433399086,5.4805,2656.0,2655.8,1.2338]
[1748433399475,1.09272899,2655.9,2655.8,1.2338]
[1748433401091,5.4805,2656.0,2655.8,1.2338]
[1748433401491,1.09233026,2655.9,2655.8,1.2338]
[1748433403189,5.4815,2656.0,2655.8,1.2338]
[1748433403491,3.28243908,2656.3,2655.8,1.2338]
[1748433403698,4.13,2656.2,2655.8,0.8573]
[1748433403885,5.4565,2656.2,2655.8,0.8573]
[1748433404091,1.09214782,2656.1,2655.8,0.8573]
[1748433404310,1.09217284,2656.0,2655.8,0.8573]
[1748433404486,1.09217284,2655.9,2655.8,0.8573]
[1748433404688,1.09217284,2655.9,2655.8,0.4808]
[1748433406295,3.28243908,2656.3,2655.8,3.6886]
[1748433406490,1.08984923,2656.2,2655.8,3.6886]
[1748433406693,1.08984923,2656.1,2655.8,3.6886]
[1748433407009,4.13,2657.9,2656.1,3.2078]
[1748433407207,1.08949163,2657.8,2657.5,3.2078]
[1748433407394,43.21969163,2657.7,2657.5,3.2078]
[1748433407592,1.08949163,2657.6,2657.5,3.2078]
[1748433408694,42.1302,2657.7,2657.5,3.2078]
[1748433408993,42.1302,2657.7,2657.5,4.5227]
[1748433409196,1.3302,2657.7,2657.5,4.5227]
[1748433409597,1.3302,2657.7,2657.5,3.2078]
[1748433410084,1.3302,2657.7,2657.6,1.2714]
[1748433412210,3.50570766,2658.4,2657.6,1.2714]
[1748433412211,3.2078,2658.4,2657.6,6.2714]
[1748433412498,1.2353,2658.1,2657.8,3.2078]
[1748433412793,1.2353,2658.1,2657.9,1.2783]
[1748433413390,0.66964887,2658.3,2657.9,1.2783]
[1748433413591,6.18024887,2658.3,2658.2,3.2078]
[1748433417401,0.00564887,2658.3,2658.2,3.2078]
[1748433420703,4.17664887,2658.3,2657.8,3.2078]
[1748433420909,1.2851,2658.2,2657.8,3.2078]
[1748433421503,5.4551,2658.2,2657.8,3.2078]
[1748433422007,0.6616,2658.1,2657.8,3.2078]
[1748433422201,1.289,2658.0,2657.8,3.2078]
[1748433424506,1.36363908,2658.0,2657.8,3.2078]
[1748433429502,40.8,2657.9,2657.8,3.2078]
[1748433430011,41.4347,2657.9,2657.4,3.2078]
[1748433430204,5.4463,2657.8,2657.4,3.2078]
[1748433430621,3.2078,2657.6,2656.5,3.2078]
[1748433430831,3.2078,2657.2,2656.6,1.2844]
[1748433431010,5.4815,2657.1,2656.6,1.9641]
[1748433431208,5.4815,2657.1,2656.7,1.2604]
[1748433431708,3.8808,2657.5,2656.8,3.2078]
[1748433431909,3.8808,2657.5,2656.9,1.2604]
[1748433432104,5.1923,2657.5,2656.9,1.2604]
[1748433433018,1.9845,2657.5,2657.1,3.2078]
[1748433433308,1.9845,2657.5,2656.8,0.672]
[1748433433508,1.9845,2657.5,2657.0,3.2078]
[1748433433711,1.9845,2657.5,2657.1,1.2604]
[1748433434917,1.9845,2657.5,2657.0,3.2078]
[1748433435111,3.2078,2657.3,2656.7,3.2078]
[1748433435414,5.4357,2657.2,2656.8,1.3002]
[1748433436312,3.2078,2657.3,2656.8,1.3002]
[1748433436509,1.06715228,2657.2,2656.9,0.6404]
[1748433436816,4.171,2657.3,2657.0,1.3002]
[1748433437001,4.171,2657.3,2656.7,3.2078]
[1748433437205,1.3639,2657.2,2656.8,1.2378]
[1748433437714,1.3639,2657.2,2656.8,1.8917]
[1748433438718,1.3639,2657.2,2656.7,3.2078]
[1748433438910,1.3639,2657.2,2656.6,0.00564887]
[1748433438911,4.171,2657.1,2656.6,0.00564887]
[1748433439112,4.5717,2657.0,2656.6,0.00564887]
[1748433439719,0.6538,2656.9,2656.6,0.00564887]
[1748433440011,5.5349,2656.8,2656.6,0.00564887]
[1748433441217,40.8,2656.7,2656.6,0.00564887]
[1748433441412,42.1395,2656.7,2656.6,0.00564887]
[1748433442717,42.1395,2656.7,2656.2,1.2378]
[1748433442919,45.3473,2656.7,2656.1,3.8328]
[1748433443214,3.2078,2656.4,2655.8,2.0129]
[1748433443417,6.0023,2656.3,2655.8,2.0129]
[1748433445020,6.0023,2656.3,2655.7,3.2078]
[1748433445521,0.00564887,2657.0,2656.2,3.2078]
[1748433445828,0.00564887,2657.0,2655.8,22.066]
[1748433445829,0.00564887,2657.0,2656.9,3.2078]
[1748433446317,0.00564887,2657.0,2656.6,3.2078]
[1748433446616,0.00564887,2657.0,2656.7,1.3196]
[1748433456047,3.2078,2656.8,2656.3,1.3121]
[1748433456335,1.3298,2656.7,2656.4,1.2898]
[1748433456839,1.3298,2656.7,2656.3,0.6372]
[1748433457129,3.2078,2656.4,2656.1,1.2898]
[1748433457327,6.50435821,2656.3,2656.1,1.2898]
[1748433457530,5.4358,2656.3,2655.8,0.6442]
[1748433457719,1.0688995,2656.2,2655.9,1.2898]
[1748433457921,1.3298,2656.2,2655.9,1.2898]
[1748433459752,1.06947805,2656.1,2655.9,1.2898]
[1748433460026,1.3298,2656.2,2655.9,1.2898]
[1748433460227,1.06949084,2656.1,2655.9,1.2898]
[1748433460429,1.3298,2656.2,2655.9,1.2898]
[1748433462034,1.06907951,2656.1,2655.9,1.2898]
[1748433462236,1.2811,2656.0,2655.9,1.2898]
[1748433463939,4.106,2656.1,2655.9,1.2898]
[1748433464934,1.2707,2656.0,2655.9,1.2898]
[1748433465330,0.6566,2656.4,2655.9,1.2898]
[1748433465534,5.17498942,2656.3,2655.9,1.2898]
[1748433465727,1.06898942,2656.2,2655.9,1.2898]
[1748433465927,4.106,2656.3,2655.9,1.2898]
[1748433466136,1.06882405,2656.2,2655.9,1.2898]
[1748433466436,4.107,2656.2,2655.9,1.2898]
[1748433466644,3.2078,2656.5,2655.9,1.2898]
[1748433468039,1.2707,2656.8,2655.9,1.2898]
[1748433468040,1.2707,2656.8,2656.2,3.2078]
[1748433468338,1.2707,2656.8,2656.3,1.9984]
[1748433468527,1.2707,2656.8,2656.4,0.663]
[1748433468732,1.2707,2656.8,2656.5,1.3228]
[1748433469439,4.107,2656.9,2656.5,1.3228]
[1748433469843,1.06904894,2656.8,2656.5,1.3228]
[1748433470139,1.06905324,2656.7,2656.5,1.3228]
[1748433470334,5.3445,2656.9,2656.5,1.3228]
[1748433470529,1.06905179,2656.8,2656.5,1.3228]
[1748433470739,5.3445,2656.9,2656.5,1.3228]
[1748433470933,1.06904563,2656.8,2656.5,1.3228]
[1748433471246,0.07463908,2656.8,2656.5,1.3228]
[1748433471841,1.06892783,2656.7,2656.5,1.3228]
[1748433472037,2.04473908,2656.8,2656.5,1.3228]
[1748433472238,1.0689279,2656.7,2656.5,1.3228]
[1748433472436,1.3329,2656.7,2656.5,1.3228]
[1748433473541,1.3329,2656.7,2656.4,0.663]
[1748433473742,1.06892702,2656.6,2656.4,0.663]
[1748433474041,1.2336,2656.5,2656.4,0.663]
[1748433474241,1.2336,2656.5,2656.4,2.0253]
[1748433475537,3.91963908,2656.8,2656.4,2.0253]
[1748433475538,0.07463908,2656.8,2656.4,2.0253]
[1748433475735,5.13905776,2656.7,2656.4,2.0253]
[1748433475937,4.07,2656.7,2656.4,2.0253]
[1748433476143,4.07,2656.7,2656.4,1.6488]
[1748433476344,4.07,2656.7,2656.5,3.2078]
[1748433476540,4.07,2656.7,2656.6,1.3623]
[1748433477648,0.07463908,2656.8,2656.6,1.3623]
[1748433492052,0.07463908,2656.8,2656.6,0.9858]
[1748433492354,0.07463908,2656.8,2656.5,3.2078]
[1748433495253,0.07463908,2656.8,2656.6,1.3432]
[1748433496453,3.2078,2657.7,2656.6,10.4122]
[1748433496678,1.07080909,2657.6,2657.1,3.2078]
[1748433496855,1.07080909,2657.5,2657.2,2.6565]
[1748433497052,3.2078,2657.7,2657.3,1.3432]
[1748433497255,1.07105506,2657.6,2657.3,1.3432]
[1748433497453,1.07105506,2657.5,2657.3,1.3432]
[1748433497653,4.49534887,2657.7,2657.3,1.3432]
[1748433497853,1.07038939,2657.6,2657.3,1.3432]
[1748433498152,1.07038939,2657.5,2657.3,1.3432]
[1748433498358,1.331,2657.6,2657.3,1.3432]
[1748433499556,0.07463908,2657.5,2657.3,1.3432]
[1748433500472,0.07463908,2657.5,2657.4,3.2078]
[1748433505274,0.07463908,2657.5,2657.3,1.3432]
[1748433505758,1.271,2657.4,2657.3,1.3432]
[1748433505960,1.271,2657.4,2657.2,0.65924887]
[1748433508165,1.271,2657.4,2657.2,0.00564887]
[1748433509555,1.271,2657.4,2657.1,2.83694887]
[1748433509761,1.271,2657.4,2657.1,2.46044887]
[1748433515181,0.6822,2657.6,2657.2,1.2844]
[1748433515367,1.2392,2657.6,2657.2,1.2844]
[1748433515667,1.2392,2657.6,2657.3,0.6231]
[1748433515867,1.2392,2657.6,2657.4,1.2844]
[1748433517872,1.2392,2657.6,2657.3,0.6231]
[1748433517873,0.07463908,2657.4,2657.1,2.46044887]
[1748433518076,1.3431,2657.3,2657.1,2.46044887]
[1748433518376,1.3431,2657.3,2657.2,1.2867]
[1748433520483,1.3431,2657.3,2657.1,2.46044887]
[1748433520670,1.9913,2657.3,2657.1,2.46044887]
[1748433521371,0.07463908,2657.4,2657.1,2.46044887]
[1748433521567,0.07463908,2657.4,2657.2,1.293]
[1748433525378,1.3097,2657.3,2657.2,1.293]
[1748433525879,1.3097,2657.3,2657.1,2.46044887]
[1748433526181,0.6188,2657.2,2657.1,2.46044887]
[1748433528085,0.6188,2657.2,2656.8,3.2078]
[1748433528380,1.3097,2657.1,2656.8,3.2078]
[1748433528777,1.3097,2657.1,2656.7,1.3008]
[1748433529584,1.07095214,2657.0,2656.7,1.3008]
[1748433529790,1.3228,2656.9,2656.7,1.3008]
[1748433530175,42.1228,2656.9,2656.7,1.3008]
[1748433530381,1.3228,2656.9,2656.7,1.3008]
[1748433530896,45.07933263,2656.8,2656.4,1.3214]
[1748433531088,3.01903263,2656.7,2656.4,1.3214]
[1748433531281,1.9475,2656.7,2656.4,1.3214]
[1748433532485,1.9475,2656.7,2656.4,0.6402]
[1748433532784,1.9475,2656.7,2656.3,1.2588]
[1748433534890,1.07011814,2656.6,2656.2,3.2078]
[1748433535090,1.3069,2656.5,2656.2,3.2078]
[1748433536081,3.899,2656.4,2656.2,3.2078]
[1748433536284,1.3069,2656.3,2656.2,3.2078]
[1748433537186,1.3069,2656.3,2656.1,0.6165]
[1748433537481,0.6174,2656.2,2655.8,3.2078]
[1748433537687,1.3072,2656.1,2655.9,1.2937]
[1748433546190,1.38183908,2656.1,2655.9,1.2937]
[1748433546992,1.38183908,2656.1,2655.6,1.2594]
[1748433547490,1.38183908,2656.1,2655.7,1.2816]
[1748433547895,1.38183908,2656.1,2655.7,4.4894]
[1748433548394,0.07463908,2656.1,2655.8,1.2816]
[1748433549295,0.07463908,2656.1,2656.0,3.2078]
[1748433552093,3.2078,2656.9,2656.0,29.6558]
[1748433552293,3.2078,2656.9,2656.1,1.9099]
[1748433552804,4.5731,2656.9,2656.1,1.9099]
[1748433553096,0.00564887,2656.8,2656.2,0.00564887]
[1748433554388,1.34584887,2656.8,2656.2,0.00564887]
[1748433554796,1.34584887,2656.8,2656.3,3.2078]
[1748433554997,1.34584887,2656.8,2656.4,1.2815]
[1748433555502,1.34584887,2656.8,2656.5,0.6779]
[1748433555795,1.34584887,2656.8,2656.6,1.9516]
[1748433555996,1.34584887,2656.8,2656.7,1.244]
[1748433559495,1.42048795,2656.8,2656.7,1.244]
[1748433560799,1.42048795,2656.8,2656.5,0.6779]
[1748433562100,1.42048795,2656.8,2656.6,1.2345]
[1748433566703,1.42048795,2656.8,2656.5,0.6779]
[1748433573199,0.6174,2656.7,2656.3,5.1239]
[1748433573500,1.3007,2656.6,2656.3,5.1239]
[1748433573701,1.3007,2656.6,2656.3,5.7675]
[1748433575412,3.86764887,2656.8,2656.3,5.7675]
[1748433575701,0.07463908,2656.7,2656.3,5.7675]
[1748433575901,1.39583908,2656.7,2656.3,5.7675]
[1748433577109,1.39583908,2656.7,2656.4,1.2685]
[1748433585609,0.07463908,2656.7,2656.4,1.2685]
[1748433588037,0.07463908,2656.7,2656.6,3.2078]
[1748433588414,0.07463908,2656.7,2656.6,8.2078]
[1748433588617,0.07463908,2656.7,2656.6,9.4529]
[1748433592809,0.00564887,2656.8,2656.6,9.4529]
[1748433593113,0.00564887,2656.8,2656.7,5.1077]
[1748433599127,0.6239,2657.6,2656.7,10.1077]
[1748433599426,0.6239,2657.6,2657.2,3.2078]
[1748433599716,0.6239,2657.6,2657.3,1.9707]
[1748433599920,1.2984,2657.5,2657.3,1.9707]
[1748433600927,0.00564887,2657.7,2657.4,2.3649]
[1748433601130,0.00564887,2657.7,2657.5,1.3161]
[1748433603734,0.00564887,2657.7,2657.4,1.0488]
[1748433604036,0.00564887,2657.7,2657.4,2.3278]
[1748433604235,0.00564887,2657.7,2657.5,1.279]
[1748433604641,4.5517,2658.4,2657.6,7.0658]
[1748433604937,1.3439,2658.3,2658.0,3.2078]
[1748433605139,2.0118,2658.3,2658.0,3.2078]
[1748433605331,2.6932,2658.3,2658.0,3.2078]
[1748433605530,1.3439,2658.2,2658.0,3.2078]
[1748433606335,1.3439,2658.2,2658.0,4.4611]
[1748433606638,1.3439,2658.2,2658.1,1.2533]
[1748433607532,0.00564887,2658.4,2658.1,1.2533]
[1748433607835,0.00564887,2658.4,2658.3,3.2078]
[1748433608958,0.6515,2658.9,2658.3,8.2078]
[1748433609150,0.29612131,2659.2,2658.7,3.2078]
[1748433609151,1.3553,2659.0,2658.7,3.2078]
[1748433609363,1.288,2659.4,2658.8,1.313]
[1748433609565,1.3553,2659.3,2658.9,0.6787]
[1748433609762,1.3553,2659.3,2658.7,3.2078]
[1748433609970,3.2078,2658.8,2658.1,3.2078]
[1748433610162,2.6648,2658.7,2658.1,3.2078]
[1748433610353,1.3553,2658.6,2658.2,1.313]
[1748433610648,1.3553,2658.6,2658.3,0.6349]
[1748433610843,1.3553,2658.6,2658.4,1.2975]
[1748433611547,1.3553,2658.6,2658.3,0.68]
[1748433611752,1.3553,2658.6,2658.1,3.2078]
[1748433612243,1.3553,2658.6,2658.2,1.2975]
[1748433613663,3.2078,2658.8,2658.3,3.857]
[1748433613847,3.2078,2659.6,2658.6,3.2078]
[1748433614039,1.281,2659.2,2658.9,3.2078]
[1748433614239,1.2978,2659.1,2658.9,3.2078]
[1748433616136,1.2978,2659.1,2659.0,1.3409]
[1748433617249,3.2078,2659.6,2659.0,1.3409]
[1748433617250,3.50716588,2659.9,2659.0,1.3409]
[1748433617470,1.3007,2659.7,2659.2,3.2078]
[1748433617665,1.3007,2659.7,2659.2,4.5277]
[1748433618343,1.3007,2659.7,2659.2,8.3837]
[1748433618547,1.3007,2659.7,2659.2,4.5277]
[1748433618945,3.2078,2659.9,2659.2,5.8609]
[1748433619250,0.08028795,2659.3,2659.2,5.2063]
[1748433619840,0.08028795,2659.3,2659.2,10.2063]
[1748433620848,1e-08,2659.3,2659.2,10.2063]
[1748433621348,1e-08,2659.3,2659.2,31.5803]
[1748433621547,1e-08,2659.3,2659.2,10.2063]
[1748433621841,1e-08,2659.3,2659.2,31.5793]
[1748433622846,1e-08,2659.3,2659.2,10.2063]
[1748433623046,1e-08,2659.3,2659.2,9.0613]
[1748433623246,1e-08,2659.3,2659.2,5.2063]
[1748433623644,1e-08,2659.3,2659.2,7.0628]
[1748433625250,1e-08,2659.3,2659.2,8.2078]
[1748433625456,1e-08,2659.3,2659.2,24.6368]
[1748433626053,1e-08,2659.3,2659.2,29.6368]
[1748433627450,1e-08,2659.3,2659.2,29.6668]
[1748433627649,1e-08,2659.3,2659.2,3.2078]
[1748433627848,1e-08,2659.3,2659.2,24.6748]
[1748433628154,1e-08,2659.3,2659.2,7.0958]
[1748433628352,1e-08,2659.3,2659.2,24.6738]
[1748433630554,1e-08,2659.3,2659.2,29.6738]
[1748433632257,7.11449949,2660.8,2659.2,29.6738]
[1748433632554,2.658,2660.4,2660.0,3.2078]
[1748433634453,2.73263908,2660.4,2660.0,3.2078]
[1748433634759,2.73263908,2660.4,2659.9,0.00564887]
[1748433636855,1.07716782,2660.3,2659.9,0.00564887]
[1748433637053,2.35346782,2660.2,2659.9,0.00564887]
[1748433637260,1.2763,2660.2,2659.4,0.39964887]
[1748433637484,3.2078,2659.5,2659.0,0.5641]
[1748433637773,3.2078,2659.1,2659.0,0.5641]
[1748433638153,8.2078,2659.1,2659.0,0.5641]
[1748433638452,9.2858483,2659.1,2658.8,0.00564887]
[1748433638651,7.0948,2659.1,2658.8,0.00564887]
[1748433640658,1.8854,2659.0,2658.8,0.00564887]
[1748433642263,1.8854,2659.0,2658.5,1.3388]
[1748433642264,1.8854,2659.0,2658.5,0.39444887]
[1748433642961,3.2078,2659.1,2658.5,3.60224887]
[1748433643164,4.4458,2659.1,2658.5,3.60224887]
[1748433643366,4.4458,2659.1,2658.5,3.60789774]
[1748433643662,3.2078,2659.1,2658.5,3.60789774]
[1748433644465,3.2078,2659.1,2658.6,0.3767]
[1748433644655,3.2078,2659.1,2658.7,3.888]
[1748433644968,3.95966,2659.1,2659.0,0.75186]
[1748433645167,3.2078,2659.1,2659.0,0.75186]
[1748433645573,3.2078,2659.1,2659.0,1.12856]
[1748433645786,3.95965,2659.1,2659.0,0.3767]
[1748433645990,0.75191,2658.9,2658.8,4.511]
[1748433646264,0.75191,2658.9,2658.5,0.00564887]
[1748433646265,0.752,2658.6,2658.5,0.00564887]
[1748433646865,0.752,2658.6,2658.5,1.63584887]
[1748433648464,3.9598,2658.6,2658.5,0.00564887]
[1748433649868,3.9598,2658.6,2658.5,1.13436887]
[1748433650170,0.752,2658.6,2658.5,1.13436887]
[1748433650767,0.82663908,2658.6,2658.5,1.13436887]
[1748433651674,4.03443908,2658.6,2658.5,0.00564887]
[1748433654271,3.28243908,2658.6,2658.5,0.00564887]
[1748433654480,0.07463908,2658.6,2658.5,3.06996887]
[1748433657075,0.82663908,2658.6,2658.5,2.31794887]
[1748433657276,4.03443908,2658.6,2658.5,2.31794887]
[1748433657876,4.03443908,2658.6,2658.5,3.06996887]
[1748433658976,4.03443908,2658.6,2658.5,0.38234887]
[1748433659175,4.03443908,2658.6,2658.5,0.00564887]
[1748433662281,0.75208,2658.3,2658.2,0.3762]
[1748433662477,3.95988,2658.3,2658.2,0.3762]
[1748433664875,0.75214,2658.1,2658.0,0.00564887]
[1748433665488,2.06754,2658.1,2658.0,0.00564887]
[1748433666682,2.06754,2658.1,2658.0,1.24644887]
[1748433667583,3.28243908,2658.3,2658.0,1.24644887]
[1748433667778,3.28243908,2658.3,2658.2,0.75211]
[1748433668383,3.28243908,2658.3,2658.2,2.61311]
[1748433668684,4.03451908,2658.3,2658.2,2.61311]
[1748433669983,4.03451908,2658.3,2658.2,1.861]
[1748433670181,0.75211,2658.2,2658.1,0.648]
[1748433670381,2.02981,2658.2,2658.1,0.648]
[1748433670781,2.02981,2658.2,2658.1,2.01]
[1748433672585,2.02981,2658.2,2658.1,2.76214]
[1748433673183,2.02981,2658.2,2658.1,2.01]
[1748433673393,0.75211,2658.2,2658.1,2.76214]
[1748433673618,4.03453908,2658.3,2658.2,0.75211]
[1748433674286,0.75211,2658.2,2658.1,2.76213]
[1748433678104,0.75211,2658.2,2658.1,2.01]
[1748433678420,0.75225,2657.7,2657.6,0.6148]
[1748433678711,3.2078,2658.0,2657.9,0.75219]
[1748433678901,0.75213,2658.2,2657.8,1.88056]
[1748433679095,3.95994,2658.1,2657.9,1.9931]
[1748433679297,3.95994,2658.1,2658.0,0.75214]
[1748433679497,3.2078,2658.1,2658.0,2.08604]
[1748433679990,3.95994,2658.1,2658.0,2.08604]
[1748433680295,3.2078,2658.1,2658.0,2.08604]
[1748433680490,3.95994,2658.1,2658.0,2.08604]
[1748433680694,3.2078,2658.1,2658.0,2.08604]
[1748433680989,0.7521,2658.3,2658.2,0.75211]
[1748433681395,0.75206,2658.4,2658.3,0.75208]
[1748433682496,0.75206,2658.4,2658.3,2.02638]
[1748433684998,3.2078,2658.5,2658.4,0.75205]
[1748433685197,3.95982,2658.5,2658.4,2.74065]
[1748433685402,3.95982,2658.5,2658.4,1.9886]
[1748433685897,1.2372,2658.6,2658.4,1.9886]
[1748433685898,0.75202,2658.6,2658.4,1.9886]
[1748433686084,0.75202,2658.6,2658.5,1.7266]
[1748433686284,0.75202,2658.6,2658.5,2.10239]
[1748433686285,0.752,2658.6,2658.5,2.10239]
[1748433689591,3.2078,2658.9,2658.5,1.3504]
[1748433689818,0.00564887,2659.2,2659.1,1.12805]
[1748433690401,0.00564887,2659.2,2659.1,1.77005]
[1748433690697,0.00564887,2659.2,2659.1,2.72715]
[1748433690698,0.75747887,2659.2,2659.1,2.72715]
[1748433691193,0.00564887,2659.2,2659.1,2.72715]
[1748433693593,0.75747887,2659.2,2659.1,2.72715]
[1748433693792,0.75185,2659.1,2659.0,0.6314]
[1748433694601,0.75185,2659.1,2659.0,1.9213]
[1748433695498,0.75185,2659.1,2659.0,2.2975]
[1748433697802,0.75194,2658.8,2658.1,41.1118]
[1748433698013,0.75196,2658.8,2658.5,3.82575]
[1748433698301,0.75196,2658.8,2658.7,0.75193]
[1748433699001,0.75196,2658.8,2658.7,1.12813]
[1748433699604,0.75196,2658.8,2658.7,0.3762]
[1748433700400,0.75197,2658.7,2658.6,0.3762]
[1748433700608,3.95977,2658.7,2658.6,0.3762]
[1748433701106,0.75208,2658.3,2658.2,0.6679]
[1748433701601,0.75208,2658.3,2658.2,1.0441]
[1748433701995,0.752,2658.7,2658.6,0.75195]
[1748433702204,3.2078,2658.9,2658.6,0.3762]
[1748433702806,3.95974,2658.9,2658.8,1.12814]
[1748433703299,3.95974,2658.9,2658.8,2.37384]
[1748433704412,3.95974,2658.9,2658.8,1.6219]
[1748433704605,3.95974,2658.9,2658.8,0.3762]